bitfinex-derivatives/quotes_ETHF0:USTF0_20251203
["timestamp","ask_amount","ask_price","bid_price","bid_amount"]
[1764755027600,2.7366167,3051.1,3051.0,1.5517]
[1764755028304,2.7366167,3051.1,3051.0,0.7847]
[1764755028502,2.7366167,3051.1,3051.0,1.5517]
[1764755030400,2.7366167,3051.1,3050.7,0.17269649]
[1764755030605,1.5767,3050.8,3050.7,1.72439649]
[1764755031097,0.7847,3050.8,3050.7,1.72439649]
[1764755031493,2.73169762,3050.8,3050.7,1.56053649]
[1764755032098,0.78961908,3051.1,3051.0,1.9943]
[1764755032300,0.00491908,3051.1,3051.0,1.9943]
[1764755034008,0.00491908,3051.1,3051.0,5.2021]
[1764755035010,40.8,3051.9,3051.8,1.5517]
[1764755035901,40.8,3051.9,3051.8,0.7847]
[1764755036307,1.5767,3051.6,3051.5,1.9943]
[1764755037998,0.7847,3051.6,3051.5,1.9943]
[1764755038204,1.5767,3051.6,3051.5,1.9943]
[1764755038503,0.7847,3051.6,3051.5,1.9943]
[1764755039406,1.5767,3051.6,3051.5,1.9943]
[1764755040204,0.7847,3051.6,3051.5,1.9943]
[1764755042514,1.5767,3051.6,3051.5,1.9943]
[1764755043006,40.8,3051.9,3051.8,0.7536]
[1764755044915,1.5639,3051.9,3051.8,1.5395]
[1764755045701,1.5639,3051.9,3051.8,0.7536]
[1764755045909,1.5639,3051.2,3051.1,1.5395]
[1764755046410,1.5639,3051.1,3051.0,5.13664467]
[1764755046618,2.74519133,3051.1,3051.0,0.7536]
[1764755046813,0.7958,3050.8,3050.7,2.72358116]
[1764755047114,2.74519133,3051.1,3051.0,0.7536]
[1764755047414,1.5639,3051.1,3051.0,1.5395]
[1764755049707,1.5639,3051.1,3051.0,0.7536]
[1764755050010,4.38909133,3051.3,3050.7,2.72358116]
[1764755051317,0.7958,3050.8,3050.7,2.72358116]
[1764755051618,4.38909133,3051.3,3050.7,2.72358116]
[1764755052707,1.5639,3050.8,3050.7,2.72358116]
[1764755053112,0.7958,3050.8,3050.7,2.72358116]
[1764755053717,1.5639,3050.8,3050.7,2.72358116]
[1764755055821,0.7958,3050.8,3050.7,2.72358116]
[1764755056020,1.18129133,3051.0,3050.7,2.72358116]
[1764755056224,0.7958,3051.0,3050.9,1.5395]
[1764755056424,1.5639,3051.0,3050.9,1.5395]
[1764755056614,1.5639,3050.8,3050.7,2.72358116]
[1764755057221,0.7958,3050.8,3050.7,2.72358116]
[1764755059020,1.5639,3051.0,3050.9,1.5395]
[1764755060126,0.7958,3051.0,3050.9,1.5395]
[1764755060626,4.38909133,3051.3,3051.2,1.5395]
[1764755060627,5.95299133,3051.3,3051.2,1.5395]
[1764755062128,5.95299133,3051.3,3051.2,0.7536]
[1764755063728,4.7717,3051.3,3051.2,1.5395]
[1764755064029,4.0036,3051.3,3051.2,1.5395]
[1764755064628,4.7717,3051.7,3051.6,1.5395]
[1764755064926,45.5717,3051.7,3051.6,0.7536]
[1764755065643,2.0303,3052.0,3051.9,1.5395]
[1764755065839,3.21168802,3052.1,3052.0,2.0202]
[1764755066945,0.00388802,3052.1,3052.0,2.0202]
[1764755067237,4.7717,3052.6,3052.5,1.5395]
[1764755068144,4.7717,3052.6,3052.5,0.7536]
[1764755068342,4.77543865,3052.6,3052.5,0.7536]
[1764755068742,0.7958,3052.3,3052.2,1.54441908]
[1764755072239,3.21153865,3052.6,3052.5,0.7536]
[1764755072243,4.77543865,3052.6,3052.5,0.7536]
[1764755072652,4.77543865,3052.6,3052.5,1.5395]
[1764755073449,4.77543865,3052.6,3052.5,1.5633]
[1764755073648,4.77543865,3052.6,3052.5,2.0062]
[1764755073948,4.77543865,3052.6,3052.5,1.5633]
[1764755074446,4.77543865,3052.6,3052.5,0.7536]
[1764755075145,4.77543865,3052.6,3052.2,1.58481908]
[1764755075146,1.4895,3052.3,3052.2,1.58481908]
[1764755081451,0.7533,3052.3,3052.2,1.58481908]
[1764755081955,3.97443865,3052.6,3052.5,0.481]
[1764755082254,3.97443865,3052.6,3052.5,1.9844]
[1764755082444,4.77933865,3052.6,3052.5,1.9844]
[1764755084152,1.5678,3052.3,3052.2,1.50831908]
[1764755084351,0.7629,3052.3,3052.2,1.50831908]
[1764755085354,1.5678,3052.5,3052.4,1.5034]
[1764755085549,0.7629,3052.5,3052.4,1.5034]
[1764755085756,3.97443865,3052.6,3052.5,1.9844]
[1764755086349,4.77933865,3052.6,3052.5,1.9844]
[1764755087750,0.00373865,3052.6,3052.5,1.9844]
[1764755088052,40.80491908,3052.9,3052.5,1.9844]
[1764755088053,0.76781908,3052.9,3052.8,1.5034]
[1764755088960,0.77112325,3052.9,3052.8,1.5034]
[1764755090057,0.00822325,3052.9,3052.8,1.5034]
[1764755090458,0.77112325,3052.9,3052.8,1.5034]
[1764755091456,1.57602325,3052.9,3052.8,1.5034]
[1764755095251,0.77112325,3052.9,3052.8,1.5034]
[1764755096359,1.92526346,3052.9,3052.8,1.5034]
[1764755096862,2.73016346,3052.9,3052.8,1.5034]
[1764755099359,1.92526346,3052.9,3052.8,1.5034]
[1764755099564,1.16236346,3052.9,3052.8,1.5034]
[1764755100362,0.00822325,3052.9,3052.8,1.5034]
[1764755100561,0.00822325,3052.9,3052.8,2.67864467]
[1764755101263,1.15414021,3053.3,3053.2,1.5034]
[1764755101761,40.8,3053.8,3053.7,0.7641]
[1764755101762,1.5678,3053.8,3053.7,0.7641]
[1764755102264,1.57040974,3053.8,3053.7,0.00260174]
[1764755102863,2.72454995,3053.8,3053.7,0.00260174]
[1764755104666,3.87869016,3053.8,3053.7,0.00260174]
[1764755104854,0.7959,3053.1,3053.0,1.17369879]
[1764755105057,1.5492,3052.9,3052.8,1.17369879]
[1764755105266,1.5492,3052.8,3052.7,3.9926]
[1764755105568,2.70334021,3052.8,3052.7,3.9926]
[1764755105768,2.70334021,3052.8,3052.7,0.7848]
[1764755105965,2.70334021,3052.8,3052.7,0.78898942]
[1764755106665,2.70334021,3052.8,3052.7,1.59038942]
[1764755107168,2.70334021,3052.8,3052.7,0.78898942]
[1764755107768,2.70334021,3052.8,3052.7,1.59038942]
[1764755108871,2.70334021,3052.8,3052.7,0.78898942]
[1764755109172,2.70334021,3052.8,3052.7,0.00418942]
[1764755115169,2.70334021,3052.8,3052.7,0.78898942]
[1764755115670,2.70334021,3052.8,3052.7,0.00418942]
[1764755115871,2.70334021,3052.8,3052.7,0.78898942]
[1764755116671,2.70334021,3052.8,3052.7,1.59038942]
[1764755119471,1.95004021,3052.8,3052.7,1.59038942]
[1764755119780,2.70334021,3053.1,3053.0,1.5862]
[1764755120372,2.70334021,3053.3,3053.2,1.5862]
[1764755120970,2.70334021,3053.3,3053.2,0.7848]
[1764755121176,2.70334021,3053.3,3053.2,1.5862]
[1764755121774,1.5492,3053.0,3052.9,2.75989879]
[1764755121970,0.7959,3053.0,3052.9,2.75989879]
[1764755123377,2.70334021,3053.0,3052.9,2.75989879]
[1764755125379,1.95004021,3053.0,3052.9,2.75989879]
[1764755126787,2.70334021,3053.0,3052.9,2.75989879]
[1764755127575,1.95004021,3053.0,3052.9,2.75989879]
[1764755128283,0.7959,3053.0,3052.9,2.75989879]
[1764755129386,1.5492,3053.0,3052.9,2.75989879]
[1764755130387,0.7959,3053.0,3052.9,2.75989879]
[1764755130887,1.5492,3053.0,3052.9,2.75989879]
[1764755131089,2.0023,3053.0,3052.9,1.95849879]
[1764755131479,2.0023,3053.0,3052.9,2.75989879]
[1764755132089,1.5492,3053.0,3052.9,2.75989879]
[1764755132685,0.7959,3053.0,3052.9,2.75989879]
[1764755132884,1.15414021,3053.1,3053.0,2.035]
[1764755133083,1.95004021,3053.1,3053.0,2.035]
[1764755133690,0.00260974,3053.8,3053.4,1.5874]
[1764755133985,0.77390974,3053.8,3053.7,1.5874]
[1764755134991,0.00260974,3053.8,3053.7,1.5874]
[1764755135990,3.2078,3054.0,3053.9,1.5874]
[1764755136998,3.9817514,3054.0,3053.9,1.5874]
[1764755138306,5.89709161,3054.0,3053.9,1.5874]
[1764755139595,1.5325,3053.8,3053.7,0.9567]
[1764755140199,1.5325,3053.8,3053.7,1.7511]
[1764755142604,0.7713,3053.8,3053.7,1.7511]
[1764755143401,4.69559161,3054.0,3053.7,1.7511]
[1764755143615,5.88339161,3054.0,3053.9,1.5746]
[1764755144505,5.88339161,3054.0,3053.9,0.793]
[1764755147106,5.88339161,3054.0,3053.9,1.5746]
[1764755147309,4.36459161,3054.0,3053.9,1.5746]
[1764755148209,5.10309161,3054.0,3053.9,1.5746]
[1764755148406,5.10309161,3054.0,3053.9,1.73829]
[1764755148605,1.89529161,3054.0,3053.9,1.73829]
[1764755149109,2.64279161,3054.0,3053.9,1.73829]
[1764755152718,1.89529161,3054.0,3053.9,1.73829]
[1764755155219,2.64279161,3054.0,3053.9,1.73829]
[1764755158522,1.4886514,3054.0,3053.9,1.73829]
[1764755159826,1.4886514,3054.0,3053.7,2.75000874]
[1764755159827,1.486,3053.8,3053.7,2.75000874]
[1764755160626,1.486,3053.8,3053.7,1.17450874]
[1764755161417,1.486,3053.7,3053.6,1.17450874]
[1764755162113,1.486,3053.7,3053.6,1.96840874]
[1764755162322,1.486,3053.7,3053.6,0.7939]
[1764755162819,1.486,3053.7,3053.6,1.5755]
[1764755163219,0.7385,3053.7,3053.6,3.33410607]
[1764755163420,1.523,3053.7,3053.6,3.33410607]
[1764755164116,4.7349,3053.9,3053.8,1.5551]
[1764755164318,4.7349,3053.9,3053.8,1.17635094]
[1764755164723,4.7349,3053.9,3053.8,1.96515094]
[1764755166928,4.7349,3053.9,3053.8,1.17635094]
[1764755167821,1.5271,3053.7,3053.5,1.17635094]
[1764755168021,2.70666548,3053.6,3053.5,1.17635094]
[1764755169227,1.9814,3053.5,3053.4,1.17635094]
[1764755169426,5.1892,3053.5,3053.4,1.17635094]
[1764755169629,1.5271,3053.2,3053.1,2.73145094]
[1764755171227,1.5271,3053.2,3053.1,1.5551]
[1764755171625,1.5271,3053.2,3053.1,0.7888]
[1764755171926,1.5271,3053.2,3053.1,1.5551]
[1764755172930,1.5271,3053.2,3053.0,1.17635094]
[1764755173229,1.5271,3053.1,3053.0,1.96515094]
[1764755173430,1.5271,3053.1,3053.0,2.73145094]
[1764755174134,1.5271,3053.1,3053.0,1.5551]
[1764755176434,0.3290514,3054.0,3053.6,1.5551]
[1764755176435,0.7426,3053.7,3053.6,1.5551]
[1764755176738,1.5271,3053.7,3053.6,1.5551]
[1764755176923,0.0026514,3054.0,3053.7,1.5551]
[1764755177234,0.7452514,3054.0,3053.9,1.5551]
[1764755178030,0.0026514,3054.0,3053.9,1.5551]
[1764755179424,1.5271,3054.5,3054.4,1.5551]
[1764755180536,1.53071933,3054.5,3054.4,1.5551]
[1764755183527,1.53071933,3054.5,3054.4,0.7888]
[1764755183733,1.5271,3054.2,3054.1,1.72369087]
[1764755186344,0.7426,3054.2,3054.1,1.72369087]
[1764755186643,0.00361933,3054.5,3054.4,1.5551]
[1764755188250,0.00361933,3054.5,3054.4,4.7629]
[1764755191343,1.53071933,3054.5,3054.4,4.7629]
[1764755191543,0.74621933,3054.5,3054.4,4.7629]
[1764755191746,0.00361933,3054.5,3054.4,4.7629]
[1764755192046,0.74621933,3054.5,3054.4,4.7629]
[1764755193053,0.00361933,3054.5,3054.4,4.92656]
[1764755195250,0.00491087,3054.8,3054.6,0.16365]
[1764755195451,0.00491087,3054.8,3054.7,1.67055]
[1764755195657,47.88856404,3055.4,3055.3,1.5069]
[1764755196358,47.89183016,3055.4,3055.3,1.51063912]
[1764755196658,47.89183016,3055.4,3055.3,0.73593912]
[1764755197154,47.89183016,3055.4,3055.3,0.00373912]
[1764755199044,47.89183016,3055.4,3055.3,0.73593912]
[1764755199453,47.89183016,3055.4,3054.5,1.16844335]
[1764755199754,47.89183016,3055.4,3054.4,3.94]
[1764755199755,2.0628,3054.5,3054.4,3.94]
[1764755200756,2.0628,3054.5,3054.4,3.94272393]
[1764755200954,2.0628,3054.5,3054.4,4.71742393]
[1764755201253,1.6048,3054.5,3054.4,4.71742393]
[1764755201456,1.6048,3054.5,3054.4,3.94272393]
[1764755201856,2.0449,3054.5,3054.4,3.94272393]
[1764755202352,2.0449,3054.5,3054.4,3.21052393]
[1764755202754,2.0449,3054.5,3054.4,3.94582393]
[1764755203158,2.0449,3054.5,3054.4,3.21052393]
[1764755203557,1.5411,3054.2,3054.1,0.00491087]
[1764755203758,2.72066548,3054.2,3054.1,0.00491087]
[1764755204659,2.72066548,3054.2,3054.1,0.00871278]
[1764755211661,1.5411,3053.6,3053.5,1.16844335]
[1764755211861,1.5411,3053.4,3053.3,0.7353]
[1764755212065,1.5411,3053.4,3053.3,1.5434]
[1764755212369,0.8016,3053.4,3053.3,1.5434]
[1764755212669,0.8016,3053.4,3053.3,1.54721882]
[1764755214173,0.8016,3053.4,3053.3,4.75501882]
[1764755215166,1.54601087,3053.7,3053.6,1.5434]
[1764755215371,1.54601087,3053.7,3053.6,0.7353]
[1764755217068,1.54601087,3053.7,3053.6,1.5434]
[1764755217069,0.00491087,3053.7,3053.6,1.5434]
[1764755217373,0.80651087,3053.7,3053.6,1.5434]
[1764755217870,0.00491087,3053.7,3053.6,1.70711]
[1764755220181,0.8016,3053.4,3053.3,4.75501882]
[1764755220371,1.54601087,3053.7,3053.6,0.7353]
[1764755220864,1.54601087,3053.7,3053.6,1.5434]
[1764755221473,1.54601087,3053.7,3053.6,0.7353]
[1764755222788,1.5411,3053.4,3053.3,4.75501882]
[1764755224279,1.5411,3053.4,3053.3,1.54721882]
[1764755224478,0.8016,3053.4,3053.3,1.54721882]
[1764755225383,1.6012,3053.4,3053.3,1.54721882]
[1764755227488,1.6012,3053.4,3053.3,0.73911882]
[1764755229185,1.6012,3053.4,3053.3,1.54261882]
[1764755231090,1.6012,3053.4,3053.3,2.71106217]
[1764755231683,1.59801087,3053.7,3053.6,1.6122]
[1764755231988,1.59801087,3053.7,3053.6,0.8087]
[1764755232390,2.0145,3053.5,3053.4,1.16844335]
[1764755232582,3.16780468,3053.5,3053.4,1.16844335]
[1764755233089,3.16780468,3053.5,3053.4,0.8087]
[1764755233293,3.16780468,3053.5,3053.4,1.6122]
[1764755233484,3.16780468,3053.5,3053.4,0.8087]
[1764755233882,1.5931,3053.4,3053.3,2.57112489]
[1764755234184,1.5931,3053.4,3053.3,0.00381882]
[1764755235384,1.5931,3053.4,3053.3,0.81251882]
[1764755235793,1.5931,3053.4,3053.3,1.61601882]
[1764755236288,44.4292,3053.5,3053.4,1.6122]
[1764755236289,3.2078,3053.5,3053.4,1.6122]
[1764755236488,0.00491087,3053.7,3053.6,1.6122]
[1764755236789,0.00491087,3053.7,3053.6,2.787134]
[1764755237188,0.79841087,3053.7,3053.6,2.787134]
[1764755238290,0.00491087,3053.7,3053.6,2.787134]
[1764755239194,0.79841087,3053.7,3053.6,1.6122]
[1764755239590,0.00491087,3053.7,3053.6,1.6122]
[1764755240390,0.00491087,3053.7,3053.6,3.53451607]
[1764755240791,4.0013,3054.3,3054.2,1.6122]
[1764755241388,4.8009,3054.3,3054.2,0.8087]
[1764755241986,0.7935,3054.1,3054.0,1.17441707]
[1764755242186,2.74640468,3054.1,3054.0,1.98311707]
[1764755242388,2.74640468,3054.1,3054.0,0.8087]
[1764755243195,2.74640468,3054.1,3053.9,1.17441707]
[1764755243500,1.94680468,3054.1,3054.0,1.6122]
[1764755243793,2.74640468,3054.1,3054.0,2.0959]
[1764755243998,0.7935,3054.1,3054.0,2.0959]
[1764755244389,0.7935,3054.2,3054.1,1.6122]
[1764755244594,3.2078,3054.3,3054.2,1.6122]
[1764755244595,4.0013,3054.3,3054.2,1.6122]
[1764755244795,3.2078,3054.3,3054.2,1.6122]
[1764755244994,0.00324125,3054.6,3054.5,2.0959]
[1764755245198,0.00324125,3054.6,3054.5,3.26980197]
[1764755245706,0.00324125,3054.6,3054.5,2.0959]
[1764755245901,1.59634125,3054.6,3054.5,2.0959]
[1764755246609,1.5931,3054.4,3054.3,2.78610197]
[1764755247012,1.5931,3054.1,3054.0,1.98260197]
[1764755247208,1.5931,3054.1,3054.0,1.6122]
[1764755247610,1.5931,3054.1,3054.0,2.0959]
[1764755248816,1.5931,3054.1,3054.0,1.6122]
[1764755249109,1.5931,3053.8,3053.7,5.19040197]
[1764755249316,1.5931,3053.8,3053.7,5.99390197]
[1764755251016,1.5931,3053.8,3053.7,2.78610197]
[1764755251717,1.5931,3053.8,3053.7,1.98260197]
[1764755251915,4.8009,3053.8,3053.7,1.17390197]
[1764755252217,4.8009,3053.8,3053.5,0.8087]
[1764755252218,1.5931,3053.6,3053.5,0.8087]
[1764755254208,1.5931,3053.6,3053.5,1.6122]
[1764755254507,1.5931,3053.6,3053.5,0.8087]
[1764755254805,3.9494,3053.8,3053.7,0.7945]
[1764755255003,4.6957,3053.8,3053.7,0.7945]
[1764755255410,0.7416,3053.8,3053.7,1.5386]
[1764755255716,1.4879,3053.8,3053.7,1.5386]
[1764755256215,0.7416,3054.0,3053.9,1.5386]
[1764755256405,1.4879,3054.0,3053.9,0.7945]
[1764755256709,1.4879,3054.0,3053.9,1.5386]
[1764755256915,4.6957,3054.2,3054.1,1.5386]
[1764755258218,1.4879,3054.2,3054.1,1.5386]
[1764755259714,1.4879,3054.2,3054.1,0.7945]
[1764755260411,1.4879,3054.2,3054.1,1.5386]
[1764755261021,3.21104125,3054.6,3054.4,0.7512]
[1764755261219,1.5356,3054.5,3054.4,0.7512]
[1764755261519,1.9791,3054.5,3054.4,0.7512]
[1764755261721,3.21104125,3054.6,3054.5,0.7512]
[1764755261921,3.96094125,3054.6,3054.5,2.0224]
[1764755262110,4.74664125,3054.6,3054.5,2.0224]
[1764755262421,4.74664125,3054.6,3054.5,0.7512]
[1764755262621,0.4435,3054.5,3054.0,0.4509]
[1764755262920,0.7499,3054.1,3054.0,2.006]
[1764755263221,0.4435,3054.5,3054.0,2.006]
[1764755263412,1.9791,3054.5,3054.4,0.7512]
[1764755263613,1.9791,3054.5,3054.0,0.4509]
[1764755264822,0.7499,3054.1,3054.0,2.006]
[1764755265024,1.5356,3054.1,3054.0,0.7512]
[1764755265320,4.7434,3054.1,3054.0,0.7512]
[1764755265518,4.7434,3054.1,3054.0,1.5551]
[1764755266316,1.5356,3053.9,3053.8,2.72900197]
[1764755266722,1.5356,3053.9,3053.8,1.92510197]
[1764755267324,1.5356,3053.9,3053.8,2.72900197]
[1764755269026,1.5356,3053.9,3053.8,1.92510197]
[1764755269227,1.5356,3053.8,3053.7,1.5551]
[1764755269418,2.68913619,3053.8,3053.7,1.5551]
[1764755270018,1.5356,3053.6,3053.5,1.17390197]
[1764755270223,1.5356,3053.4,3053.3,0.00381882]
[1764755270424,2.68913619,3053.4,3053.3,0.75501882]
[1764755270823,2.68913619,3053.4,3053.3,1.55891882]
[1764755271327,2.68913619,3053.4,3053.3,0.75501882]
[1764755272332,1.5356,3053.4,3053.3,0.75501882]
[1764755274026,4.7434,3053.4,3053.3,0.75501882]
[1764755276427,4.7434,3053.4,3053.3,1.55891882]
[1764755276729,0.7499,3053.4,3053.3,1.55891882]
[1764755276925,3.9577,3054.1,3054.0,0.7512]
[1764755277132,4.7434,3054.1,3054.0,0.7512]
[1764755278131,3.6513,3054.5,3054.0,2.0224]
[1764755278623,0.7499,3054.1,3054.0,2.0224]
[1764755278824,3.6513,3054.5,3054.0,2.0224]
[1764755279026,0.7499,3054.1,3054.0,2.0224]
[1764755279731,1.5356,3054.1,3054.0,0.7512]
[1764755279933,3.6513,3054.5,3053.8,2.72900197]
[1764755279934,1.5356,3053.9,3053.8,2.72900197]
[1764755280631,0.7499,3053.8,3053.7,2.72900197]
[1764755280839,3.9577,3054.0,3053.9,1.5551]
[1764755281031,4.7434,3054.0,3053.9,1.5551]
[1764755281521,4.7434,3054.0,3053.9,0.7512]
[1764755281722,5.1895,3054.0,3053.9,0.7512]
[1764755281936,1.5356,3053.7,3053.6,2.72900197]
[1764755287532,3.6539,3054.0,3053.6,2.72900197]
[1764755287836,5.1575,3054.0,3053.9,0.7451]
[1764755288340,1.5036,3053.7,3053.6,2.65350197]
[1764755289938,0.7419,3053.7,3053.6,2.65350197]
[1764755290743,4.3958,3054.0,3053.9,0.7451]
[1764755291037,4.7114,3054.0,3053.9,1.4796]
[1764755291237,3.2078,3054.0,3053.9,1.4796]
[1764755291434,3.9497,3054.0,3053.9,1.4796]
[1764755292143,1.5036,3054.0,3053.9,1.4796]
[1764755293230,1.9598,3054.0,3053.7,1.17390197]
[1764755293444,1.5036,3053.8,3053.7,1.91900197]
[1764755294440,1.5036,3053.7,3053.6,1.17390197]
[1764755295642,1.9598,3053.5,3053.4,0.7451]
[1764755296037,41.97999978,3053.8,3053.7,1.4796]
[1764755296438,2.68359978,3053.8,3053.7,1.4796]
[1764755299342,2.68359978,3053.8,3053.7,0.7451]
[1764755301550,2.68359978,3053.8,3053.7,1.4796]
[1764755302146,2.68359978,3053.8,3053.7,0.7451]
[1764755302551,1.9598,3053.5,3053.4,1.17390197]
[1764755302855,1.9598,3053.5,3053.4,1.4796]
[1764755304152,1.5036,3053.5,3053.4,1.4796]
[1764755306156,1.5036,3053.5,3053.4,2.65350197]
[1764755306454,3.2078,3053.7,3053.6,1.4796]
[1764755306455,3.9497,3053.7,3053.6,1.4796]
[1764755307451,1.5036,3053.6,3053.5,2.65350197]
[1764755309370,1.5036,3053.6,3053.5,3.09600197]
[1764755309863,5.89139978,3054.3,3054.2,0.7451]
[1764755310062,5.89139978,3054.3,3054.2,1.4796]
[1764755310264,5.12969978,3054.3,3054.2,1.4796]
[1764755310659,3.9497,3054.3,3054.2,1.4796]
[1764755310861,1.18324103,3054.6,3054.0,0.4425]
[1764755310862,2.68684103,3054.6,3054.5,1.4796]
[1764755311262,0.74514125,3054.6,3054.5,1.9221]
[1764755311772,1.50684125,3054.6,3054.5,1.9221]
[1764755312870,0.00324125,3054.6,3054.5,1.9221]
[1764755313071,0.74514125,3054.6,3054.5,1.9221]
[1764755313975,0.00324125,3054.6,3054.5,1.9221]
[1764755314973,0.00324125,3054.6,3054.5,3.09752587]
[1764755315172,0.00324125,3054.6,3054.5,1.9221]
[1764755315869,5.91189978,3055.2,3055.1,0.8022]
[1764755316376,5.91189978,3055.2,3055.1,1.592]
[1764755316574,3.9978,3055.2,3055.1,1.592]
[1764755316774,5.94359978,3055.2,3055.1,0.8022]
[1764755316973,0.7637,3054.9,3054.8,1.65225087]
[1764755317173,1.5295,3054.9,3054.8,1.65225087]
[1764755318282,1.5295,3054.9,3054.8,1.48861087]
[1764755318875,51.09963016,3055.4,3055.3,0.7411]
[1764755319276,51.09963016,3055.4,3055.3,1.4837]
[1764755320477,47.89183016,3055.4,3055.3,1.4837]
[1764755323186,51.09963016,3055.4,3055.3,1.4837]
[1764755325588,0.7637,3055.1,3055.0,1.9451]
[1764755326193,1.5295,3055.1,3055.0,1.9451]
[1764755326382,51.09963016,3055.4,3055.3,1.4837]
[1764755329688,0.7637,3055.1,3055.0,1.2025]
[1764755329884,0.7637,3055.1,3055.0,1.9451]
[1764755330389,1.5295,3055.1,3055.0,1.9451]
[1764755330887,0.7637,3055.1,3055.0,1.9451]
[1764755331290,1.5295,3055.1,3055.0,1.9451]
[1764755331882,1.5295,3055.1,3055.0,0.7411]
[1764755332088,1.5295,3055.0,3054.9,0.90474]
[1764755332291,1.5295,3054.9,3054.8,0.00491087]
[1764755333987,1.5295,3054.9,3054.8,0.74601087]
[1764755334191,1.5295,3054.9,3054.8,1.48861087]
[1764755334690,1.5295,3054.9,3054.8,0.74601087]
[1764755335090,1.5295,3054.9,3054.8,1.48861087]
[1764755335296,1.5295,3054.9,3054.8,0.00491087]
[1764755337784,1.5295,3054.9,3054.8,0.74601087]
[1764755339199,1.5295,3054.9,3054.8,1.48861087]
[1764755339999,3.9715,3055.0,3054.9,1.4837]
[1764755340493,49.04434972,3055.4,3055.0,1.9451]
[1764755340693,49.04434972,3055.4,3055.3,1.4837]
[1764755341197,49.04434972,3055.4,3055.3,0.7411]
[1764755341798,47.89183016,3055.4,3055.3,1.4837]
[1764755342093,47.89183016,3055.4,3055.3,0.7411]
[1764755342493,47.89183016,3055.4,3055.3,1.4837]
[1764755343402,47.89183016,3055.4,3055.3,2.81987681]
[1764755344297,47.89183016,3055.4,3055.3,2.81998488]
[1764755345102,47.89183016,3055.4,3055.3,1.64732]
[1764755346003,47.89183016,3055.4,3055.3,3.4104588]
[1764755346493,47.89183016,3055.4,3055.3,1.64732]
[1764755348399,47.89183016,3055.4,3055.3,3.4060976]
[1764755349716,39.82503641,3055.4,3055.3,3.99995344]
[1764755350505,39.82503641,3055.4,3055.3,1.64732]
[1764755351803,39.82503641,3055.4,3055.3,0.16362]
[1764755352001,39.82503641,3055.4,3055.3,2.85879282]
[1764755352204,39.82503641,3055.4,3055.3,1.68742]
[1764755352408,39.82503641,3055.4,3055.3,2.85858203]
[1764755352798,39.82503641,3055.4,3055.3,1.68742]
[1764755353206,39.82503641,3055.4,3055.3,2.85834889]
[1764755354609,39.82503641,3055.4,3055.3,2.08104889]
[1764755355402,39.82503641,3055.4,3055.3,2.85834889]
[1764755356008,39.82503641,3055.4,3055.3,1.33454889]
[1764755357206,39.82503641,3055.4,3055.3,0.16362]
[1764755359827,1.5433,3055.3,3055.2,1.17092889]
[1764755360122,1.5433,3055.1,3055.0,1.91742889]
[1764755360327,1.5433,3055.1,3055.0,2.69472889]
[1764755360722,1.5433,3055.1,3055.0,3.17082889]
[1764755361322,39.82503641,3055.4,3055.3,0.7465]
[1764755364425,39.82503641,3055.4,3055.3,1.5238]
[1764755364632,39.82503641,3055.4,3055.3,2.83993956]
[1764755367327,39.82503641,3055.4,3055.3,1.68742]
[1764755367534,39.82503641,3055.4,3055.3,4.03076142]
[1764755370435,39.82503641,3055.4,3055.3,1.68742]
[1764755372226,39.82503641,3055.4,3055.3,3.25463977]
[1764755372421,39.82503641,3055.4,3055.3,4.03193977]
[1764755373038,39.82503641,3055.4,3055.3,1.68742]
[1764755378540,39.82503641,3055.4,3055.3,0.16362]
[1764755378937,39.82503641,3055.4,3055.3,0.89522]
[1764755379137,39.82503641,3055.4,3055.3,1.63312]
[1764755379840,39.82503641,3055.4,3055.3,4.84092]
[1764755380042,39.82503641,3055.4,3055.3,4.10302]
[1764755380234,39.82503641,3055.4,3055.3,4.84092]
[1764755381035,39.82503641,3055.4,3055.3,5.99343956]
[1764755381532,39.82503641,3055.4,3055.3,8.33795933]
[1764755382333,39.14925641,3055.4,3055.3,5.99343956]
[1764755382534,38.81186641,3055.4,3055.3,5.99343956]
[1764755383641,38.81186641,3055.4,3055.3,2.78563956]
[1764755383840,38.81186641,3055.4,3055.3,5.99343956]
[1764755385439,38.81186641,3055.4,3055.3,4.52393956]
[1764755385632,38.81186641,3055.4,3055.3,6.86819274]
[1764755385829,38.81186641,3055.4,3055.3,7.59979274]
[1764755387933,38.81186641,3055.4,3055.3,6.86819274]
[1764755388741,38.81186641,3055.4,3055.3,5.71567318]
[1764755388941,38.81186641,3055.4,3055.3,5.13109454]
[1764755392438,38.81186641,3055.4,3055.3,3.37142]
[1764755400544,38.81186641,3055.4,3055.3,4.10302]
[1764755400745,38.81186641,3055.4,3055.3,3.37142]
[1764755401048,38.81186641,3055.4,3055.3,3.2078]
[1764755401250,1.9585,3055.0,3054.9,2.34425318]
[1764755401556,1.9585,3055.0,3054.9,1.7611685]
[1764755402248,1.5131,3055.0,3054.9,1.63314]
[1764755402549,38.81186641,3055.4,3055.3,1.63312]
[1764755402755,38.81186641,3055.4,3055.3,4.84092]
[1764755402949,38.81186641,3055.4,3055.3,7.18718577]
[1764755403146,38.81186641,3055.4,3055.3,4.84092]
[1764755403546,38.45549641,3055.4,3055.3,15.0658005]
[1764755403748,38.45549641,3055.4,3055.3,9.0658005]
[1764755403944,38.45549641,3055.4,3055.3,10.2439574]
[1764755407856,38.10057641,3055.4,3055.3,13.17137084]
[1764755408057,38.10057641,3055.4,3055.3,10.2439574]
[1764755408655,38.10057641,3055.4,3055.3,13.17348974]
[1764755409453,38.10057641,3055.4,3055.3,10.2439574]
[1764755410757,38.10057641,3055.4,3055.3,6.0190769]
[1764755412962,38.10057641,3055.4,3055.3,5.2811769]
[1764755413556,38.10057641,3055.4,3055.3,4.5495769]
[1764755413757,38.10057641,3055.4,3055.3,5.3253769]
[1764755413957,38.10057641,3055.4,3055.3,6.1186769]
[1764755415765,38.10057641,3055.4,3055.3,10.37094614]
[1764755415960,37.74110641,3055.4,3055.3,13.30047848]
[1764755416268,36.45570641,3055.4,3055.3,10.37094614]
[1764755416460,36.04719641,3055.4,3055.3,10.37094614]
[1764755416652,35.64189641,3055.4,3055.3,10.37094614]